Organisation Name,Department where exp. Incurred,Service Category Label,Supplier (Beneficiary),Purpose of Expenditure,Procurement (Merchant) Category,Purchase Date,Settlement Date,Transaction Number,Net Amount (�)
Stockport MBC,Corporate and Support Services,Central Support Costs,FASTHOSTS INTERNET,Information and Communications Technology,Information Communication Technology  ,27.07.2021,16.08.2021,GPC07210000001,12.59
Stockport MBC,Corporate and Support Services,Central Support Costs,FASTHOSTS INTERNET,Information and Communications Technology,Information Communication Technology  ,27.07.2021,16.08.2021,GPC07210000002,15.59
Stockport MBC,Corporate and Support Services,Central Support Costs,MIRO.COM,Information and Communications Technology,Information Communication Technology  ,24.07.2021,16.08.2021,GPC07210000003,166.11
Stockport MBC,Corporate and Support Services,Central Support Costs,GITHUB,Information and Communications Technology,Information Communication Technology  ,14.07.2021,16.08.2021,GPC07210000004,74.61
Stockport MBC,Corporate and Support Services,Central Support Costs,AUTH0.COM,Information and Communications Technology,Information Communication Technology  ,13.07.2021,16.08.2021,GPC07210000005,8.93
Stockport MBC,Corporate and Support Services,Central Support Costs,WWW.CONTENTFUL.COM,Information and Communications Technology,Information Communication Technology  ,09.07.2021,16.08.2021,GPC07210000006,810.48
Stockport MBC,Corporate and Support Services,Central Support Costs,ATLASSIAN,Information and Communications Technology,Information Communication Technology  ,08.07.2021,16.08.2021,GPC07210000007,973.73
Stockport MBC,Corporate and Support Services,Central Support Costs,AUTH0.COM,Information and Communications Technology,Information Communication Technology  ,05.07.2021,16.08.2021,GPC07210000008,149.96
Stockport MBC,Corporate and Support Services,Central Support Costs,LOOKBACK STARTER,Information and Communications Technology,Information Communication Technology  ,03.07.2021,16.08.2021,GPC07210000009,881.73
Stockport MBC,Corporate and Support Services,Central Support Costs,AWS EMEA,Information and Communications Technology,Information Communication Technology  ,03.07.2021,16.08.2021,GPC07210000010,"1,083.68"
Stockport MBC,Services to People,Adult Social Care,DELIVEROO,Catering Supplies,Catering Food & Beverages ,28.07.2021,16.08.2021,GPC07210000011,63.20
Stockport MBC,Services to People,Adult Social Care,DELIVEROO,Catering Supplies,Catering Food & Beverages ,20.07.2021,16.08.2021,GPC07210000012,45.02
Stockport MBC,Services to People,Adult Social Care,DELIVEROO,Catering Supplies,Catering Food & Beverages ,20.07.2021,16.08.2021,GPC07210000013,24.46
Stockport MBC,Services to People,Adult Social Care,DELIVEROO,Catering Supplies,Catering Food & Beverages ,16.07.2021,16.08.2021,GPC07210000014,28.64
Stockport MBC,Services to People,Adult Social Care,DELIVEROO,Catering Supplies,Catering Food & Beverages ,16.07.2021,16.08.2021,GPC07210000015,36.72
Stockport MBC,Services to People,Adult Social Care,BRITISH GAS ONLINE,Catering Supplies,Catering Food & Beverages ,16.07.2021,16.08.2021,GPC07210000016,30.00
Stockport MBC,Services to People,Childrens & Educational Services,COMMUNICATE-ED,Staff Training,Human Resources  ,02.07.2021,16.08.2021,GPC07210000017,99.00
Stockport MBC,Corporate and Support Services,Central Services to the public,CATERING24 LTD,Office Expenses,Stationery    ,12.07.2021,16.08.2021,GPC07210000018,76.57
Stockport MBC,Corporate and Support Services,Central Support Costs,FACEBK  JPCFX5PLG2,Office Expenses,Facilities & Management Services  ,31.07.2021,16.08.2021,GPC07210000019,310.05
Stockport MBC,Corporate and Support Services,Central Support Costs,FACEBK  9BCWLAFLG2,Office Expenses,Facilities & Management Services  ,28.07.2021,16.08.2021,GPC07210000020,700.00
Stockport MBC,Corporate and Support Services,Central Support Costs,APPLE.COM/BILL,Information and Communications Technology,Information Communication Technology  ,26.07.2021,16.08.2021,GPC07210000021,4.16
Stockport MBC,Corporate and Support Services,Central Support Costs,APPLE.COM/BILL,Information and Communications Technology,Information Communication Technology  ,26.07.2021,16.08.2021,GPC07210000022,5.83
Stockport MBC,Corporate and Support Services,Central Support Costs,ADOBE CREATIVE CLOUD,Information and Communications Technology,Information Communication Technology  ,26.07.2021,16.08.2021,GPC07210000023,708.00
Stockport MBC,Corporate and Support Services,Central Support Costs,LINKEDIN-659 2121733,Office Expenses,Facilities & Management Services  ,07.07.2021,16.08.2021,GPC07210000024,350.86
Stockport MBC,Services to People,Childrens & Educational Services,ASDA STORES 4840,Catering Supplies,Catering Food & Beverages ,12.07.2021,16.08.2021,GPC07210000025,23.42
Stockport MBC,Services to People,Childrens & Educational Services,ASDA STORES 4840,Catering Supplies,Catering Food & Beverages ,09.07.2021,16.08.2021,GPC07210000026,6.49
Stockport MBC,Services to People,Childrens & Educational Services,ASDA STORES 4840,Catering Supplies,Catering Food & Beverages ,08.07.2021,16.08.2021,GPC07210000027,0.99
Stockport MBC,Services to People,Childrens & Educational Services,MCDONALDS 1202,Catering Supplies,Catering Food & Beverages ,07.07.2021,16.08.2021,GPC07210000028,40.60
Stockport MBC,Services to People,Childrens & Educational Services,ASDA STORES 4840,Catering Supplies,Catering Food & Beverages ,06.07.2021,16.08.2021,GPC07210000029,6.47
Stockport MBC,Services to People,Childrens & Educational Services,ASDA STORES 4840,Catering Supplies,Catering Food & Beverages ,05.07.2021,16.08.2021,GPC07210000030,16.21
Stockport MBC,Services to People,Childrens & Educational Services,ASDA STORES 4840,Catering Supplies,Catering Food & Beverages ,02.07.2021,16.08.2021,GPC07210000031,3.70
Stockport MBC,Services to People,Childrens & Educational Services,JYSK LTD,Furniture and Equipment,Environmental Services Technical Equipment ,21.07.2021,16.08.2021,GPC07210000032,14.16
Stockport MBC,Services to People,Childrens & Educational Services,LUMI COMPLETE,Fees and Charges,UNCLASSIFIED  ,20.07.2021,16.08.2021,GPC07210000033,29.00
Stockport MBC,Services to People,Childrens & Educational Services,WWW.TTS-GROUPS.CO.UK,Furniture and Equipment,Environmental Services Technical Equipment ,20.07.2021,16.08.2021,GPC07210000034,334.70
Stockport MBC,Services to People,Childrens & Educational Services,AMZNMKTPLACE,Office Expenses,Stationery    ,08.07.2021,16.08.2021,GPC07210000035,8.25
Stockport MBC,Services to Place,Cultural & Related Services,PAYPAL  WOODSHAPES,Furniture and Equipment,Furniture & Soft Furnishings  ,08.07.2021,16.08.2021,GPC07210000036,-38.95
Stockport MBC,Services to People,Childrens & Educational Services,CVAA UK LTD,Staff Training,Human Resources  ,21.07.2021,16.08.2021,GPC07210000037,90.00
Stockport MBC,Services to People,Childrens & Educational Services,VIMEO PRO,Information and Communications Technology,Information Communication Technology  ,07.07.2021,16.08.2021,GPC07210000038,189.00
Stockport MBC,Services to People,Childrens & Educational Services,GOOGLE  ADS8179771860,Office Expenses,Facilities & Management Services  ,03.07.2021,16.08.2021,GPC07210000039,158.61
Stockport MBC,Services to People,Childrens & Educational Services,AMZNMKTPLACE AMAZON.CO,Furniture and Equipment,Furniture & Soft Furnishings  ,18.07.2021,16.08.2021,GPC07210000040,26.76
Stockport MBC,Services to People,Childrens & Educational Services,AMAZON PRIME C67P15KK5,Furniture and Equipment,Furniture & Soft Furnishings  ,13.07.2021,16.08.2021,GPC07210000041,7.99
Stockport MBC,Services to People,Childrens & Educational Services,POST OFFICE COUNTER,Office Expenses,Mail Services�  ,20.07.2021,16.08.2021,GPC07210000042,18.39
Stockport MBC,Services to People,Childrens & Educational Services,TESCO STORE 2629,Catering Supplies,Catering Food & Beverages ,19.07.2021,16.08.2021,GPC07210000043,4.40
Stockport MBC,Services to People,Childrens & Educational Services,WM MORRISONS STORE,Catering Supplies,Catering Food & Beverages ,19.07.2021,16.08.2021,GPC07210000044,16.21
Stockport MBC,Services to People,Childrens & Educational Services,AMZ AMAZON EU,Furniture and Equipment,Environmental Services Technical Equipment ,19.07.2021,16.08.2021,GPC07210000045,-49.85
Stockport MBC,Services to People,Childrens & Educational Services,ALDI 2 773,Catering Supplies,Catering Food & Beverages ,15.07.2021,16.08.2021,GPC07210000046,5.72
Stockport MBC,Services to People,Childrens & Educational Services,MCDONALDS,Catering Supplies,Catering Food & Beverages ,14.07.2021,16.08.2021,GPC07210000047,49.34
Stockport MBC,Services to People,Childrens & Educational Services,WM MORRISONS STORE,Catering Supplies,Catering Food & Beverages ,12.07.2021,16.08.2021,GPC07210000048,12.46
Stockport MBC,Services to People,Childrens & Educational Services,CAFE ON THE PIER,Fees and Charges,Education  ,09.07.2021,16.08.2021,GPC07210000049,33.50
Stockport MBC,Services to People,Childrens & Educational Services,WM MORRISONS STORE,Catering Supplies,Catering Food & Beverages ,08.07.2021,16.08.2021,GPC07210000050,3.27
Stockport MBC,Services to People,Childrens & Educational Services,AMAZON.CO.UK VB9HH6R35,Furniture and Equipment,Environmental Services Technical Equipment ,08.07.2021,16.08.2021,GPC07210000051,124.27
Stockport MBC,Services to People,Childrens & Educational Services,WM MORRISONS STORE,Catering Supplies,Catering Food & Beverages ,07.07.2021,16.08.2021,GPC07210000052,6.50
Stockport MBC,Services to People,Childrens & Educational Services,WM MORRISONS STORE,Catering Supplies,Catering Food & Beverages ,06.07.2021,16.08.2021,GPC07210000053,10.62
Stockport MBC,Services to People,Childrens & Educational Services,WM MORRISONS STORE,Catering Supplies,Catering Food & Beverages ,05.07.2021,16.08.2021,GPC07210000054,2.45
Stockport MBC,Services to People,Childrens & Educational Services,WM MORRISONS STORE,Catering Supplies,Catering Food & Beverages ,05.07.2021,16.08.2021,GPC07210000055,23.46
Stockport MBC,Corporate and Support Services,Corporate & Democratic Core,THE FLOWER EMPORIUM,Furniture and Equipment,Environmental Services Technical Equipment ,28.07.2021,16.08.2021,GPC07210000056,39.95
Stockport MBC,Corporate and Support Services,Corporate & Democratic Core,COUNTY CAR AND VAN STO,Leasing /Transport Hire,Vehicle Management Leasing ,28.07.2021,16.08.2021,GPC07210000057,336.34
Stockport MBC,Corporate and Support Services,Corporate & Democratic Core,COUNTY CAR AND VAN STO,Leasing /Transport Hire,Vehicle Management Leasing ,15.07.2021,16.08.2021,GPC07210000058,199.46
Stockport MBC,Corporate and Support Services,Corporate & Democratic Core,COUNTY CAR AND VAN STO,Leasing /Transport Hire,Vehicle Management Leasing ,09.07.2021,16.08.2021,GPC07210000059,29.92
Stockport MBC,Corporate and Support Services,Corporate & Democratic Core,COUNTY CAR AND VAN STO,Leasing /Transport Hire,Vehicle Management Leasing ,02.07.2021,16.08.2021,GPC07210000060,360.05
Stockport MBC,Corporate and Support Services,Central Services to the public,AMZNMKTPLACE AMAZON.CO,Office Expenses,Stationery    ,31.07.2021,16.08.2021,GPC07210000061,62.30
Stockport MBC,Corporate and Support Services,Central Support Costs,AMAZON.CO.UK GQ5O12555,Office Expenses,Stationery    ,30.07.2021,16.08.2021,GPC07210000062,19.96
Stockport MBC,Corporate and Support Services,Central Support Costs,WWW.IPSEA.ORG.UK,Staff Training,Human Resources  ,29.07.2021,16.08.2021,GPC07210000063,125.00
Stockport MBC,Corporate and Support Services,Central Support Costs,WWW.MONEYCLAIM.GOV,Legal Fees,Legal Services  ,09.07.2021,16.08.2021,GPC07210000064,455.00
Stockport MBC,Services to People,Adult Social Care,ALDI 84 773,Catering Supplies,Catering Food & Beverages ,27.07.2021,16.08.2021,GPC07210000065,26.40
Stockport MBC,Services to People,Adult Social Care,ALDI 84 773,Catering Supplies,Catering Food & Beverages ,22.07.2021,16.08.2021,GPC07210000066,36.79
Stockport MBC,Services to People,Adult Social Care,EBAY O 02-07373-27448,COVID,COVID,22.07.2021,16.08.2021,GPC07210000067,142.99
Stockport MBC,Services to People,Adult Social Care,ALDI 72 778,Catering Supplies,Catering Food & Beverages ,13.07.2021,16.08.2021,GPC07210000068,8.35
Stockport MBC,Services to People,Adult Social Care,ASDA GROCERIES ONLINE,Catering Supplies,Catering Food & Beverages ,30.07.2021,16.08.2021,GPC07210000069,-0.85
Stockport MBC,Services to People,Adult Social Care,ASDA GROCERIES ONLINE,Catering Supplies,Catering Food & Beverages ,30.07.2021,16.08.2021,GPC07210000070,40.63
Stockport MBC,Services to People,Adult Social Care,ASDA GROCERIES ONLINE,Catering Supplies,Catering Food & Beverages ,24.07.2021,16.08.2021,GPC07210000071,-1.05
Stockport MBC,Services to People,Adult Social Care,ASDA GROCERIES ONLINE,Catering Supplies,Catering Food & Beverages ,24.07.2021,16.08.2021,GPC07210000072,58.09
Stockport MBC,Services to People,Adult Social Care,ASDA GROCERIES ONLINE,Catering Supplies,Catering Food & Beverages ,16.07.2021,16.08.2021,GPC07210000073,-0.05
Stockport MBC,Services to People,Adult Social Care,ASDA GROCERIES ONLINE,Catering Supplies,Catering Food & Beverages ,16.07.2021,16.08.2021,GPC07210000074,55.40
Stockport MBC,Services to People,Adult Social Care,ASDA GROCERIES ONLINE,Catering Supplies,Catering Food & Beverages ,09.07.2021,16.08.2021,GPC07210000075,-0.89
Stockport MBC,Services to People,Adult Social Care,ASDA GROCERIES ONLINE,Catering Supplies,Catering Food & Beverages ,09.07.2021,16.08.2021,GPC07210000076,90.75
Stockport MBC,Services to People,Childrens & Educational Services,AMAZON PRIME X80SH0SB5,Office Expenses,Stationery    ,18.07.2021,16.08.2021,GPC07210000077,7.99
Stockport MBC,Services to Place,Childrens & Educational Services,POST OFFICE COUNTER,Publicity and Promotion,Facilities & Management Services  ,30.07.2021,16.08.2021,GPC07210000078,20.00
Stockport MBC,Services to Place,Childrens & Educational Services,ONE4ALL,Publicity and Promotion,Facilities & Management Services  ,21.07.2021,16.08.2021,GPC07210000079,100.00
Stockport MBC,Services to Place,Childrens & Educational Services,ONE4ALL,Publicity and Promotion,Facilities & Management Services  ,19.07.2021,16.08.2021,GPC07210000080,100.00
Stockport MBC,Services to People,Childrens & Educational Services,AMZNMKTPLACE AMAZON.CO,Furniture and Equipment,Environmental Services Technical Equipment ,08.07.2021,16.08.2021,GPC07210000081,40.97
Stockport MBC,Services to People,Childrens & Educational Services,ATG TICKETS,Fees and Charges,Education  ,05.07.2021,16.08.2021,GPC07210000082,157.19
Stockport MBC,Services to People,Childrens & Educational Services,POST OFFICE COUNTER,Office Expenses,Mail Services�  ,20.07.2021,16.08.2021,GPC07210000083,15.84
Stockport MBC,Services to People,Childrens & Educational Services,WM MORRISONS STORE,Catering Supplies,Catering Food & Beverages ,16.07.2021,16.08.2021,GPC07210000084,3.00
Stockport MBC,Services to People,Childrens & Educational Services,ASDA STORES 4840,Catering Supplies,Catering Food & Beverages ,15.07.2021,16.08.2021,GPC07210000085,12.89
Stockport MBC,Services to People,Childrens & Educational Services,POST OFFICE COUNTER,Office Expenses,Mail Services�  ,15.07.2021,16.08.2021,GPC07210000086,3.79
Stockport MBC,Services to People,Childrens & Educational Services,MY.MORRISONS.COM,Catering Supplies,Catering Food & Beverages ,13.07.2021,16.08.2021,GPC07210000087,20.00
Stockport MBC,Services to People,Childrens & Educational Services,ASDA STORES 4840,Cleaning,Cleaning & Janitorial  ,09.07.2021,16.08.2021,GPC07210000088,2.40
Stockport MBC,Services to People,Childrens & Educational Services,PAYPAL  ELSASUPPORT,Furniture and Equipment,Furniture & Soft Furnishings  ,08.07.2021,16.08.2021,GPC07210000089,11.00
Stockport MBC,Services to People,Childrens & Educational Services,ARGOS LTD,Furniture and Equipment,Furniture & Soft Furnishings  ,07.07.2021,16.08.2021,GPC07210000090,40.00
Stockport MBC,Services to People,Childrens & Educational Services,AMZNMKTPLACE AMAZON.CO,Furniture and Equipment,Furniture & Soft Furnishings  ,06.07.2021,16.08.2021,GPC07210000091,9.98
Stockport MBC,Services to People,Childrens & Educational Services,OFSTED INTERNET,Fees and Charges,"Works - Construction, Repair & Maintenance  ",05.07.2021,16.08.2021,GPC07210000092,35.00
Stockport MBC,Services to People,Adult Social Care,JYSK LTD,Furniture and Equipment,Furniture & Soft Furnishings  ,23.07.2021,16.08.2021,GPC07210000093,20.85
Stockport MBC,Services to People,Childrens & Educational Services,ASDA STORES 4840,Catering Supplies,Catering Food & Beverages ,06.07.2021,16.08.2021,GPC07210000094,11.60
Stockport MBC,Services to People,Childrens & Educational Services,TRAINLINE,Travelling Expenses,Human Resources Travel & Subsistence ,30.07.2021,16.08.2021,GPC07210000095,21.16
Stockport MBC,Services to People,Childrens & Educational Services,TRAINLINE,Travelling Expenses,Human Resources Travel & Subsistence ,29.07.2021,16.08.2021,GPC07210000096,81.40
Stockport MBC,Services to People,Childrens & Educational Services,HOLIDAY INNS,Care Payments,Social Community Care Supplies & Services  ,27.07.2021,16.08.2021,GPC07210000097,561.00
Stockport MBC,Services to People,Childrens & Educational Services,ZOOM.US 888-799-9666,Furniture and Equipment,Furniture & Soft Furnishings  ,26.07.2021,16.08.2021,GPC07210000098,14.39
Stockport MBC,Services to People,Childrens & Educational Services,METRO TAXIS LIMITED,Travelling Expenses,Human Resources Travel & Subsistence Taxi Fares,26.07.2021,16.08.2021,GPC07210000099,10.00
Stockport MBC,Services to People,Childrens & Educational Services,METRO TAXIS LIMITED,Travelling Expenses,Human Resources Travel & Subsistence Taxi Fares,26.07.2021,16.08.2021,GPC07210000100,10.00
Stockport MBC,Services to People,Childrens & Educational Services,BRITANNIA HOTEL,Care Payments,Social Community Care Supplies & Services  ,23.07.2021,16.08.2021,GPC07210000101,90.00
Stockport MBC,Services to People,Childrens & Educational Services,THETRAINLINE.COM,Travelling Expenses,Human Resources Travel & Subsistence ,23.07.2021,16.08.2021,GPC07210000102,21.16
Stockport MBC,Services to People,Childrens & Educational Services,METRO TAXIS LIMITED,Travelling Expenses,Human Resources Travel & Subsistence Taxi Fares,23.07.2021,16.08.2021,GPC07210000103,9.00
Stockport MBC,Services to People,Childrens & Educational Services,FLOREEDA FABRICATI,COVID,COVID,22.07.2021,16.08.2021,GPC07210000104,"1,401.60"
Stockport MBC,Services to People,Childrens & Educational Services,HOLIDAY INNS,Care Payments,Social Community Care Supplies & Services  ,20.07.2021,16.08.2021,GPC07210000105,563.00
Stockport MBC,Services to People,Childrens & Educational Services,HOLIDAY INNS,Care Payments,Social Community Care Supplies & Services  ,20.07.2021,16.08.2021,GPC07210000106,461.00
Stockport MBC,Services to People,Childrens & Educational Services,METRO TAXIS LIMITED,Travelling Expenses,Human Resources Travel & Subsistence Taxi Fares,19.07.2021,16.08.2021,GPC07210000107,20.00
Stockport MBC,Services to People,Childrens & Educational Services,THETRAINLINE.COM,Travelling Expenses,Human Resources Travel & Subsistence ,14.07.2021,16.08.2021,GPC07210000108,21.16
Stockport MBC,Services to People,Childrens & Educational Services,METRO TAXIS LIMITED,Travelling Expenses,Human Resources Travel & Subsistence Taxi Fares,14.07.2021,16.08.2021,GPC07210000109,20.00
Stockport MBC,Services to People,Childrens & Educational Services,HOLIDAY INNS,Care Payments,Social Community Care Supplies & Services  ,13.07.2021,16.08.2021,GPC07210000110,479.00
Stockport MBC,Services to People,Childrens & Educational Services,METRO TAXIS LIMITED,Travelling Expenses,Human Resources Travel & Subsistence Taxi Fares,09.07.2021,16.08.2021,GPC07210000111,5.30
Stockport MBC,Services to People,Childrens & Educational Services,METRO TAXIS LIMITED,Travelling Expenses,Human Resources Travel & Subsistence Taxi Fares,09.07.2021,16.08.2021,GPC07210000112,5.30
Stockport MBC,Services to People,Childrens & Educational Services,TRAINLINE,Travelling Expenses,Human Resources Travel & Subsistence ,09.07.2021,16.08.2021,GPC07210000113,21.16
Stockport MBC,Services to People,Childrens & Educational Services,TRAVELODGE GB0000,Care Payments,Social Community Care Supplies & Services  ,08.07.2021,16.08.2021,GPC07210000114,378.32
Stockport MBC,Services to People,Childrens & Educational Services,TRAVELODGE GB0000,Care Payments,Social Community Care Supplies & Services  ,02.07.2021,16.08.2021,GPC07210000115,255.94
Stockport MBC,Services to People,Childrens & Educational Services,THETRAINLINE.COM,Travelling Expenses,Human Resources Travel & Subsistence ,02.07.2021,16.08.2021,GPC07210000116,21.16
Stockport MBC,Services to People,Childrens & Educational Services,METRO TAXIS LIMITED,Care Payments,Social Community Care Supplies & Services  ,30.07.2021,16.08.2021,GPC07210000117,10.00
Stockport MBC,Services to People,Childrens & Educational Services,SPORTSDIRECT.COM,Care Payments,Social Community Care Supplies & Services  ,28.07.2021,16.08.2021,GPC07210000118,124.99
Stockport MBC,Services to People,Childrens & Educational Services,1 AND 1 IONOS LTD,Information and Communications Technology,Information Communication Technology  ,27.07.2021,16.08.2021,GPC07210000119,12.00
Stockport MBC,Services to People,Childrens & Educational Services,TRAINLINE.COM,Publicity and Promotion,Arts & Leisure Services  ,27.07.2021,16.08.2021,GPC07210000120,32.00
Stockport MBC,Services to People,Childrens & Educational Services,GBP RIFFS MUSIC ACADEM,Care Payments,Social Community Care Supplies & Services  ,27.07.2021,16.08.2021,GPC07210000121,143.00
Stockport MBC,Services to People,Childrens & Educational Services,BRITANNIA,Care Payments,Social Community Care Supplies & Services  ,15.07.2021,16.08.2021,GPC07210000122,69.00
Stockport MBC,Services to People,Childrens & Educational Services,BRITANNIA,Care Payments,Social Community Care Supplies & Services  ,15.07.2021,16.08.2021,GPC07210000123,69.00
Stockport MBC,Services to People,Childrens & Educational Services,FREEDOM PROGRAMME LIMI,Care Payments,Social Community Care Supplies & Services  ,15.07.2021,16.08.2021,GPC07210000124,12.00
Stockport MBC,Services to People,Childrens & Educational Services,STOCKPORT MBC DOM,Care Payments,Social Community Care Supplies & Services  ,15.07.2021,16.08.2021,GPC07210000125,881.77
Stockport MBC,Services to People,Childrens & Educational Services,BRITANNIA,Care Payments,Social Community Care Supplies & Services  ,14.07.2021,16.08.2021,GPC07210000126,69.00
Stockport MBC,Services to People,Childrens & Educational Services,STOCKPORT MBC DOM,Care Payments,Social Community Care Supplies & Services  ,14.07.2021,16.08.2021,GPC07210000127,600.20
Stockport MBC,Services to People,Childrens & Educational Services,TFGM,Care Payments,Social Community Care Supplies & Services  ,12.07.2021,16.08.2021,GPC07210000128,10.00
Stockport MBC,Services to People,Childrens & Educational Services,MIRO.COM,Information and Communications Technology,Information Communication Technology  ,12.07.2021,16.08.2021,GPC07210000129,153.01
Stockport MBC,Services to People,Childrens & Educational Services,ZOOM.US 888-799-9666,Information and Communications Technology,Information Communication Technology  ,11.07.2021,16.08.2021,GPC07210000130,11.99
Stockport MBC,Services to People,Childrens & Educational Services,DELIVEROO,Staff Training,Human Resources  ,08.07.2021,16.08.2021,GPC07210000131,29.58
Stockport MBC,Services to People,Childrens & Educational Services,DELIVEROO,Staff Training,Human Resources  ,02.07.2021,16.08.2021,GPC07210000132,36.06
Stockport MBC,Services to People,Childrens & Educational Services,WWW.THEWORKS.CO.UK,Furniture and Equipment,Environmental Services Technical Equipment ,22.07.2021,16.08.2021,GPC07210000133,34.00
Stockport MBC,Services to People,Childrens & Educational Services,SP   RED CARPET FX,Furniture and Equipment,Environmental Services Technical Equipment ,22.07.2021,16.08.2021,GPC07210000134,33.88
Stockport MBC,Services to People,Childrens & Educational Services,TINKNSTINK,Furniture and Equipment,Environmental Services Technical Equipment ,22.07.2021,16.08.2021,GPC07210000135,89.89
Stockport MBC,Services to People,Childrens & Educational Services,WM MORRISONS STORE,Catering Supplies,Catering Food & Beverages ,19.07.2021,16.08.2021,GPC07210000136,8.03
Stockport MBC,Services to People,Childrens & Educational Services,WM MORRISONS STORE,Catering Supplies,Catering Food & Beverages ,05.07.2021,16.08.2021,GPC07210000137,31.51
Stockport MBC,Services to People,Childrens & Educational Services,MCDONALDS 571,Catering Supplies,Catering Food & Beverages ,31.07.2021,16.08.2021,GPC07210000138,14.23
Stockport MBC,Services to People,Childrens & Educational Services,NETFLIX.COM,Fees and Charges,Financial Services  ,09.07.2021,16.08.2021,GPC07210000139,13.99
Stockport MBC,Services to People,Childrens & Educational Services,DISNEY PLUS,Fees and Charges,Financial Services  ,03.07.2021,16.08.2021,GPC07210000140,5.99
Stockport MBC,Services to People,Adult Social Care,WWW.ADASS.ORG.UK,Expenses and Allowances,Human Resources Training & Conferences ,14.07.2021,16.08.2021,GPC07210000141,450.00
Stockport MBC,Services to People,Childrens & Educational Services,AMZNMKTPLACE AMAZON.CO,Furniture and Equipment,Environmental Services Technical Equipment ,15.07.2021,16.08.2021,GPC07210000142,26.98
Stockport MBC,Services to People,Childrens & Educational Services,AMZNMKTPLACE,Furniture and Equipment,Environmental Services Technical Equipment ,14.07.2021,16.08.2021,GPC07210000143,26.98
Stockport MBC,Services to People,Childrens & Educational Services,AMZNMKTPLACE AMAZON.CO,Furniture and Equipment,Environmental Services Technical Equipment ,13.07.2021,16.08.2021,GPC07210000144,66.66
Stockport MBC,Services to People,Childrens & Educational Services,AMZNMKTPLACE AMAZON.CO,Furniture and Equipment,Environmental Services Technical Equipment ,13.07.2021,16.08.2021,GPC07210000145,66.66
Stockport MBC,Services to People,Childrens & Educational Services,W M MORRISON STORE,Catering Supplies,Catering Food & Beverages ,12.07.2021,16.08.2021,GPC07210000146,36.00
Stockport MBC,Services to People,Childrens & Educational Services,AMZNMKTPLACE AMAZON.CO,Furniture and Equipment,Environmental Services Technical Equipment ,08.07.2021,16.08.2021,GPC07210000147,60.74
Stockport MBC,Services to People,Childrens & Educational Services,AMZNMKTPLACE,Furniture and Equipment,Environmental Services Technical Equipment ,08.07.2021,16.08.2021,GPC07210000148,98.79
Stockport MBC,Services to People,Childrens & Educational Services,AMZNMKTPLACE,Furniture and Equipment,Environmental Services Technical Equipment ,08.07.2021,16.08.2021,GPC07210000149,91.42
Stockport MBC,Services to People,Childrens & Educational Services,ARGOS LTD,Furniture and Equipment,Environmental Services Technical Equipment ,07.07.2021,16.08.2021,GPC07210000150,38.95
Stockport MBC,Services to People,Childrens & Educational Services,OFFERTON SAND & GRAVEL,Furniture and Equipment,Environmental Services Technical Equipment ,07.07.2021,16.08.2021,GPC07210000151,93.60
Stockport MBC,Services to People,Childrens & Educational Services,AMZNMKTPLACE,Furniture and Equipment,Environmental Services Technical Equipment ,07.07.2021,16.08.2021,GPC07210000152,22.96
Stockport MBC,Services to People,Childrens & Educational Services,LIFE LEISURE BRINNINGT,Fees and Charges,Education  ,06.07.2021,16.08.2021,GPC07210000153,21.50
Stockport MBC,Services to People,Childrens & Educational Services,AMZNMKTPLACE AMAZON.CO,Furniture and Equipment,Environmental Services Technical Equipment ,05.07.2021,16.08.2021,GPC07210000154,42.09
Stockport MBC,Services to People,Childrens & Educational Services,AMZNMKTPLACE,Furniture and Equipment,Environmental Services Technical Equipment ,05.07.2021,16.08.2021,GPC07210000155,59.71
Stockport MBC,Services to People,Childrens & Educational Services,AMZNMKTPLACE,Furniture and Equipment,Environmental Services Technical Equipment ,05.07.2021,16.08.2021,GPC07210000156,59.71
Stockport MBC,Services to People,Childrens & Educational Services,WWW.THEWORKS.CO.UK,Furniture and Equipment,Environmental Services Technical Equipment ,05.07.2021,16.08.2021,GPC07210000157,71.50
Stockport MBC,Services to People,Childrens & Educational Services,AMAZON.CO.UK 2050H20M4,Furniture and Equipment,Environmental Services Technical Equipment ,05.07.2021,16.08.2021,GPC07210000158,18.57
Stockport MBC,Services to People,Childrens & Educational Services,AMZNMKTPLACE AMAZON.CO,Furniture and Equipment,Environmental Services Technical Equipment ,05.07.2021,16.08.2021,GPC07210000159,23.96
Stockport MBC,Services to People,Adult Social Care,WWW.IMAGING-SUPERSTORE,Printing and Photocopying,Facilities & Management Services Printing ,30.07.2021,16.08.2021,GPC07210000160,460.00
Stockport MBC,Corporate and Support Services,Cultural & Related Services,AMZNMKTPLACE,Publicity and Promotion,Arts & Leisure Services  ,11.07.2021,16.08.2021,GPC07210000161,107.39
Stockport MBC,Corporate and Support Services,Cultural & Related Services,AMZNMKTPLACE,Publicity and Promotion,Arts & Leisure Services  ,07.07.2021,16.08.2021,GPC07210000162,61.80
Stockport MBC,Services to People,Adult Social Care,ALDI 84 773,Catering Supplies,Catering Food & Beverages ,09.07.2021,16.08.2021,GPC07210000163,54.38
Stockport MBC,Services to People,Adult Social Care,ALDI 84 773,Catering Supplies,Catering Food & Beverages ,07.07.2021,16.08.2021,GPC07210000164,22.10
Stockport MBC,Corporate and Support Services,Planning Services,W M MORRISON STORE,Catering Supplies,Catering Food & Beverages ,13.07.2021,16.08.2021,GPC07210000165,54.82
Stockport MBC,Services to People,Childrens & Educational Services,AMAZON.CO.UK BF7X821G5,Library Equipment,Education Library Books ,17.07.2021,16.08.2021,GPC07210000166,17.30
Stockport MBC,Services to People,Childrens & Educational Services,ARGOS LTD,Furniture and Equipment,Furniture & Soft Furnishings  ,09.07.2021,16.08.2021,GPC07210000167,53.94
Stockport MBC,Services to People,Childrens & Educational Services,SAINSBURYS SACAT 2051,Catering Supplies,Catering Food & Beverages ,14.07.2021,16.08.2021,GPC07210000168,9.30
Stockport MBC,Services to People,Childrens & Educational Services,ASDA STORE 4422,Catering Supplies,Catering Food & Beverages ,14.07.2021,16.08.2021,GPC07210000169,19.18
Stockport MBC,Services to People,Childrens & Educational Services,ALDI 17 773,Catering Supplies,Catering Food & Beverages ,08.07.2021,16.08.2021,GPC07210000170,10.16
Stockport MBC,Corporate and Support Services,Central Support Costs,NOMINET UK,Furniture and Equipment,Environmental Services Technical Equipment ,21.07.2021,16.08.2021,GPC07210000171,3.90
Stockport MBC,Services to Place,Highways & Transport Services,EB  INTERNATIONAL CHIL,Fees and Charges,UNCLASSIFIED  ,20.07.2021,16.08.2021,GPC07210000172,100.00
Stockport MBC,Corporate and Support Services,Cultural & Related Services,AMZNMKTPLACE,Office Expenses,Stationery    ,22.07.2021,16.08.2021,GPC07210000173,23.85
Stockport MBC,Corporate and Support Services,Cultural & Related Services,AMZNMKTPLACE,Furniture and Equipment,Furniture & Soft Furnishings  ,15.07.2021,16.08.2021,GPC07210000174,14.88
Stockport MBC,Corporate and Support Services,Cultural & Related Services,DISCLOSURE AND BARRING,Fees and Charges,"Works - Construction, Repair & Maintenance  ",09.07.2021,16.08.2021,GPC07210000175,23.00
